{"text_format":"3","workbook":"xlsx","n_sheets":1,"sheets":["Sheet1"],"read":"whole","date_system":"1900"}

{"sheet":"Sheet1","index":0,"n_rows":21,"n_cols":8,"rows_kept":21,"merged":[[0,0,0,7],[1,0,1,7],[2,0,2,7],[20,0,20,4]]}
["KRUGER NATIONAL PARK - TECHNICAL SPECIFICATION"]
["TAPS"]
["All taps to be installed must comply with JASWIC and SABS approval requirements"]
["Item","Image","Description","Quantities","Unit Price","Total Units (50) Excl VAT  @15%","VAT @15%","Total Units (50) Incl VAT  @15%"]
["KITCHEN MIXER",null,"Wall-mounted sink mixer with aerated swivel spout. The original star-shaped design. Well-suited for use in low water pressure environments. 2 X 1/2\" BSP male iron connection ends. Made with de-zincification resistant brass for increased durability. Includes a 20 year warranty. Care & Maintenace - Ensure your product does not come into contact with any lubricants during installation. Chrome plated, matte black and any colour finshes should be wiped with warm soapy water and a soft cloth or sponge. Rinse, then dry and buff with a dry soft cloth. Under no circumstances must any detergents containing hydrochloric acids or abrasives including cream cleansers be used. Do not use abrasive cleaning materials such as scourers. Should your product have an aerator at the water outlet, it should be checked and cleaned regularly.Material : DZR BRASS\n\n20 Year Warranty DZR Brass JaswicApproved.",50,{"v":0,"d":"R 0.00"},{"$f":"E5*D5","v":{"v":0,"d":"R 0.00"}},{"$f":"F5*15%","v":{"v":0,"d":"R 0.00"}},{"$f":"SUM(F5:G5)","v":{"v":0,"d":"R 0.00"}}]
["SINGLE PILLAR TAPS (COLD INDICES )",null,"The original star-shaped design. Well-suited for use in low water pressure environments. 1/2\" BSP male connection ends. Made with de-zincification resistant brass for increased durability. Includes a 20 year warranty. Care & Maintenace - Ensure your product does not come into contact with any lubricants during installation. Chrome plated, matte black and any colour finshes should be wiped with warm soapy water and a soft cloth or sponge. Rinse, then dry and buff with a dry soft cloth. Under no circumstances must any detergents containing hydrochloric acids or abrasives including cream cleansers be used. Do not use abrasive cleaning materials such as scourers. Should your product have an aerator at the water outlet, it should be checked and cleaned regularly.",50,{"v":0,"d":"R 0.00"},{"$f":"E6*D6","v":{"v":0,"d":"R 0.00"}},{"$f":"F6*15%","v":{"v":0,"d":"R 0.00"}},{"$f":"F6+G6","v":{"v":0,"d":"R 0.00"}}]
["SINGLE PILLAR TAPS ( COLD INDICES )",null,"With sliding wall flange. 15mm compression connection ends. CP Care & Maintenace - Ensure your product does not come into contact with any lubricants during installation. Chrome plated, matte black and any colour finshes should be wiped with warm soapy water and a soft cloth or sponge. Rinse, then dry and buff with a dry soft cloth. Under no circumstances must any detergents containing hydrochloric acids or abrasives including cream cleansers be used. Do not use abrasive cleaning materials such as scourers. Should your product have an aerator at the water outlet, it should be checked and cleaned regularly.",50,{"v":0,"d":"R 0.00"},{"$f":"E7*D7","v":{"v":0,"d":"R 0.00"}},{"$f":"F7*15%","v":{"v":0,"d":"R 0.00"}},{"$f":"SUM(F7:G7)","v":{"v":0,"d":"R 0.00"}}]
["Bath tub mixer",null,"Wall-mounted bath mixer with diverter. Package includes a modern hand shower, wall- mounted hand shower holder, & hand shower hose. The original star-shaped design. 2 X 1/2\" BSP male iron connection ends. Made with de-zincification resistant brass for increased durability. Technology enabling your handle to be replaced by one of a different Original design. Includes a 20 year warranty. Care & Maintenace - Ensure your product does not come into contact with any lubricants during installation. Chrome plated, matte black and any colour finshes should be wiped with warm soapy water and a soft cloth or sponge. Rinse, then dry and buff with a dry soft cloth. Under no circumstances must any detergents containing hydrochloric acids or abrasives including cream cleansers be used. Do not use abrasive cleaning materials such as scourers. Should your product have an aerator at the water outlet, it should be checked and cleaned regularly",30,{"v":0,"d":"R 0.00"},{"v":0,"d":"R 0.00"},{"v":0,"d":"R 0.00"},{"v":0,"d":"R 0.00"}]
[null,null,"Single lever concealed shower or bath mixer. Trim set & underwall body included. Underwall body manufactured with dezincification resistant (DZR) brass. SANS compliant chrome plated finish (nickel plating = 12.0µm; chrome plating = 0.3µm). 15mm female connection ends. Carries a 10 year warranty. Jaswic Approved Care & Maintenace - Ensure your product does not come into contact with any lubricants during installation. Chrome plated, matte black and any colour finshes should be wiped with warm soapy water and a soft cloth or sponge. Rinse, then dry and buff with a dry soft cloth. Under no circumstances must any detergents containing hydrochloric acids or abrasives including cream cleansers be used. Do not use abrasive cleaning materials such as scourers. Should your product have an aerator at the water outlet, it should be checked and cleaned regularly.",30,{"v":0,"d":"R 0.00"},{"v":0,"d":"R 0.00"},{"v":0,"d":"R 0.00"},{"v":0,"d":"R 0.00"}]
[null,null,"Non hold open, self closing. 1/2BSP male iron connection end. Care & Maintenace - Ensure your product does not come into contact with any lubricants during installation. Chrome plated, matte black and any colour finshes should be wiped with warm soapy water and a soft cloth or sponge. Rinse, then dry and buff with a dry soft cloth. Under no circumstances must any detergents containing hydrochloric acids or abrasives including cream cleansers be used. Do not use abrasive cleaning materials such as scourers. Should your product have an aerator at the water outlet, it should be checked and cleaned regularly",30,{"v":0,"d":"R 0.00"},{"v":0,"d":"R 0.00"},{"v":0,"d":"R 0.00"},{"v":0,"d":"R 0.00"}]
["SINGLE PILLAR TAPS (HOT INDICES )",null,"With sliding wall flange. 15mm compression connection ends. CP Care & Maintenace - Ensure your product does not come into contact with any lubricants during installation. Chrome plated, matte black and any colour finshes should be wiped with warm soapy water and a soft cloth or sponge. Rinse, then dry and buff with a dry soft cloth. Under no circumstances must any detergents containing hydrochloric acids or abrasives including cream cleansers be used. Do not use abrasive cleaning materials such as scourers. Should your product have an aerator at the water outlet, it should be checked and cleaned regularly.",30,{"v":0,"d":"R 0.00"},{"v":0,"d":"R 0.00"},{"v":0,"d":"R 0.00"},{"v":0,"d":"R 0.00"}]
["SINGLE PILLAR TAPS (HOT INDICES )",null,"The original star-shaped design. Well-suited for use in low water pressure environments. 1/2\" BSP male connection ends. Made with de-zincification resistant brass for increased durability. Includes a 20 year warranty. Care & Maintenace - Ensure your product does not come into contact with any lubricants during installation. Chrome plated, matte black and any colour finshes should be wiped with warm soapy water and a soft cloth or sponge. Rinse, then dry and buff with a dry soft cloth. Under no circumstances must any detergents containing hydrochloric acids or abrasives including cream cleansers be used. Do not use abrasive cleaning materials such as scourers. Should your product have an aerator at the water outlet, it should be checked and cleaned regularly.",30,{"v":0,"d":"R 0.00"},{"v":0,"d":"R 0.00"},{"v":0,"d":"R 0.00"},{"v":0,"d":"R 0.00"}]
[null,null,"Original Chrome plated pillar tap including hot & cold indices. The original triangular design. 1/2\" BSP male connection end. With Cobra EasySwitch technology enabling your handle to be replaced by one of a different Cobra Original design.Cobra Genuine spare parts available.Includes a 20 year warranty. Care & Maintenace - Ensure your product does not come into contact with any lubricants during installation. Chrome plated, matte black and any colour finshes should be wiped with warm soapy water and a soft cloth or sponge. Rinse, then dry and buff with a dry soft cloth. Under no circumstances must any detergents containing hydrochloric acids or abrasives including cream cleansers be used. Do not use abrasive cleaning materials such as scourers. Should your product have an aerator at the water outlet, it should be checked and cleaned regularly.",40,{"v":0,"d":"R 0.00"},{"v":0,"d":"R 0.00"},{"v":0,"d":"R 0.00"},{"v":0,"d":"R 0.00"}]
[null,null,"One hole with aerated swivel outlet. 1/2 BSP female connection ends. CP Care & Maintenace - Ensure your product does not come into contact with any lubricants during installation. Chrome plated, matte black and any colour finshes should be wiped with warm soapy water and a soft cloth or sponge. Rinse, then dry and buff with a dry soft cloth. Under no circumstances must any detergents containing hydrochloric acids or abrasives including cream cleansers be used. Do not use abrasive cleaning materials such as scourers. Should your product have an aerator at the water outlet, it should be checked and cleaned regularly.",30,{"v":0,"d":"R 0.00"},{"v":0,"d":"R 0.00"},{"v":0,"d":"R 0.00"},{"v":0,"d":"R 0.00"}]
[null,null,"Wall type with diverter. Without hand shower attachment. 1/2 BSP male iron connection ends. CP Care & Maintenace - Ensure your product does not come into contact with any lubricants during installation. Chrome plated, matte black and any colour finshes should be wiped with warm soapy water and a soft cloth or sponge. Rinse, then dry and buff with a dry soft cloth. Under no circumstances must any detergents containing hydrochloric acids or abrasives including cream cleansers be used. Do not use abrasive cleaning materials such as scourers. Should your product have an aerator at the water outlet, it should be checked and cleaned regularly.",30,{"v":0,"d":"R 0.00"},{"v":0,"d":"R 0.00"},{"v":0,"d":"R 0.00"},{"v":0,"d":"R 0.00"}]
["Hi-waist",null,"Hi-waist with hot and cold indices. 1/2 BSP male iron connection end. CP Care & Maintenace - Ensure your product does not come into contact with any lubricants during installation. Chrome plated, matte black and any colour finshes should be wiped with warm soapy water and a soft cloth or sponge. Rinse, then dry and buff with a dry soft cloth. Under no circumstances must any detergents containing hydrochloric acids or abrasives including cream cleansers be used. Do not use abrasive cleaning materials such as scourers. Should your product have an aerator at the water outlet, it should be checked and cleaned regularly.",30,{"v":0,"d":"R 0.00"},{"v":0,"d":"R 0.00"},{"v":0,"d":"R 0.00"},{"v":0,"d":"R 0.00"}]
["Aerator",null,"Aerator for sink mixer chrome.",50,{"v":0,"d":"R 0.00"},{"v":0,"d":"R 0.00"},{"v":0,"d":"R 0.00"},{"v":0,"d":"R 0.00"}]
["Flow Restrictor",null,"Water Saving Flow Restrictor For Most Basin Mixers 2L/Min Core, Washer and M24 Cover Included, Mikado Diamond Spray",50,{"v":0,"d":"R 0.00"},{"v":0,"d":"R 0.00"},{"v":0,"d":"R 0.00"},{"v":0,"d":"R 0.00"}]
["Aerator for taps",null,"Aerator for taps and basin mixers. 8l/minute flow rate",50,{"v":0,"d":"R 0.00"},{"v":0,"d":"R 0.00"},{"v":0,"d":"R 0.00"},{"v":0,"d":"R 0.00"}]
["Watersaving aerator",null,"Watersaving aerator\nNotes: Low-flow aerator insert,\n6L/min, with 'rub clean' feature, prepacked. \nWater-saving replacement part for M24x1 and M22x1 aerators. DIY fit to existing taps and mixers.",30,{"v":0,"d":"R 0.00"},{"v":0,"d":"R 0.00"},{"v":0,"d":"R 0.00"},{"v":0,"d":"R 0.00"}]
["TOTAL Bid Price",{"$nulls":4},{"$f":"SUM(F5:F20)","v":{"v":0,"d":"R 0.00"}},{"$f":"SUM(G5:G20)","v":{"v":0,"d":"R 0.00"}},{"$f":"SUM(H5:H20)","v":{"v":0,"d":"R 0.00"}}]